fUSD/lending_fUSD_20250630
["ID","MTS","AMOUNT","RATE_DAILY","PERIOD"]
[368701672,1751309445952,-150.0,0.00013611,2]
[368701673,1751309445964,-150.0,0.00013611,2]
[368701674,1751309445976,-150.0,0.00013611,2]
[368701675,1751309445989,-868.33833708,0.00013622,2]
[368701676,1751309446006,-200.0,0.00013635,2]
[368701677,1751309446018,-200.0,0.00013635,2]
[368701678,1751309446033,-150.0,0.00013646,2]
[368701679,1751309446046,-868.33833708,0.00013678,2]
[368701680,1751309446058,-151.0,0.00013678,2]
[368701681,1751309446071,-151.0,0.00013678,2]
[368701682,1751309446083,-294.63096,0.00013678,2]
[368701683,1751309446095,-294.63096,0.00013678,2]
[368701684,1751309446108,-324.839686,0.00013678,2]
[368701685,1751309446120,-324.839686,0.00013678,2]
[368701686,1751309446132,-199.105829,0.00013678,2]
[368701687,1751309446144,-199.105829,0.00013678,2]
[368701688,1751309446156,-151.0,0.00013698,2]
[368701689,1751309446168,-151.0,0.00013698,2]
[368701690,1751309446179,-151.0,0.00013698,2]
[368701691,1751309446190,-151.0,0.00013698,2]
[368701692,1751309446203,-153.687672,0.00013698,2]
[368701693,1751309446215,-151.0,0.00013698,2]
[368701694,1751309446227,-151.0,0.00013698,2]
[368701695,1751309446239,-151.0,0.00013698,2]
[368701696,1751309446253,-151.637634,0.00013698,2]
[368701697,1751309446264,-151.0,0.00013698,2]
[368701698,1751309446275,-151.0,0.00013698,2]
[368701699,1751309446288,-182.214616,0.00013698,2]
[368701700,1751309446299,-182.214616,0.00013698,2]
[368701701,1751309446311,-151.0,0.00013698,2]
[368701702,1751309446323,-151.0,0.00013698,2]
[368701703,1751309446333,-151.0,0.00013698,2]
[368701704,1751309446346,-211.941146,0.00013698,2]
[368701705,1751309446358,-174.202062,0.00013698,2]
[368701706,1751309446381,-174.202062,0.00013698,2]
[368701707,1751309446397,-191.341658,0.00013698,2]
[368701708,1751309446410,-180.824725,0.00013698,2]
[368701709,1751309446422,-180.824725,0.00013698,2]
[368701710,1751309446435,-151.0,0.00013698,2]
[368701711,1751309446448,-206.943913,0.00013698,2]
[368701712,1751309446460,-206.943913,0.00013698,2]
[368701713,1751309446472,-151.0,0.00013698,2]
[368701714,1751309446485,-415.771147,0.00013698,2]
[368701715,1751309446499,-415.771147,0.00013698,2]
[368701716,1751309446511,-151.0,0.00013698,2]
[368701717,1751309446523,-214.216467,0.00013698,2]
[368701718,1751309446536,-214.216467,0.00013698,2]
[368701719,1751309446548,-706.020562,0.00013698,2]
[368701720,1751309446560,-706.020562,0.00013698,2]
[368701721,1751309446572,-151.0,0.00013699,2]
[368701722,1751309446584,-151.0,0.00013699,2]
[368701723,1751309446597,-151.0,0.00013699,2]
[368701724,1751309446608,-151.0,0.00013699,2]
[368701725,1751309446620,-151.0,0.00013699,2]
[368701726,1751309446632,-151.0,0.00013699,2]
[368701727,1751309446644,-151.0,0.00013699,2]
[368701728,1751309446656,-151.0,0.00013699,2]
[368701729,1751309446668,-151.0,0.00013699,2]
[368701730,1751309446680,-151.0,0.00013699,2]
[368701731,1751309446693,-151.0,0.00013699,2]
[368701732,1751309446704,-200.0,0.00013699,2]
[368701733,1751309446716,-756.44,0.00013699,2]
[368701734,1751309446727,-616.0,0.00013699,2]
[368701735,1751309446739,-151.0,0.00013699,2]
[368701736,1751309446752,-151.0,0.00013699,2]
[368701737,1751309446763,-151.0,0.00013699,2]
[368701738,1751309446775,-151.0,0.00013699,2]
[368701739,1751309446787,-151.0,0.00013699,2]
[368701740,1751309446808,-151.0,0.00013699,2]
[368701741,1751309446821,-151.0,0.00013699,2]
[368701742,1751309446833,-151.0,0.00013699,2]
[368701743,1751309446847,-151.0,0.00013699,2]
[368701744,1751309446860,-151.0,0.00013699,2]
[368701745,1751309446875,-151.0,0.00013699,2]
[368701746,1751309446889,-151.0,0.00013699,2]
[368701747,1751309446903,-181.0176612,0.00013699,2]
[368701748,1751309446915,-500.0,0.00013699,2]
[368701749,1751309446927,-229.11417252,0.00013699,2]
[368701750,1751309446939,-151.0,0.00013699,2]
[368701751,1751309446952,-151.0,0.00013699,2]
[368701752,1751309446964,-151.0,0.00013699,2]
[368701753,1751309446977,-151.0,0.00013699,2]
[368701754,1751309446989,-151.0,0.00013699,2]
[368701755,1751309447002,-430.0,0.00013699,2]
[368701756,1751309447015,-151.0,0.00013699,2]
[368701757,1751309447029,-832.622211,0.00013699,2]
[368701758,1751309447041,-151.0,0.00013699,2]
[368701759,1751309447053,-832.622211,0.00013699,2]
[368701760,1751309447066,-151.0,0.00013699,2]
[368701761,1751309447079,-151.0,0.00013699,2]
[368701762,1751309447092,-151.0,0.00013699,2]
[368701763,1751309447106,-151.0,0.000137,2]
[368701764,1751309447119,-151.0,0.000137,2]
[368701765,1751309447131,-197.03,0.000137,2]
[368701766,1751309447142,-197.03,0.000137,2]
[368701767,1751309447155,-197.03,0.000137,2]
[368701768,1751309447166,-197.03,0.000137,2]
[368701769,1751309447178,-197.03,0.000137,2]
[368701770,1751309447191,-265.56,0.000137,2]
[368701771,1751309447204,-184.2,0.00013712,2]
[368701772,1751309447225,-152.932254,0.00013712,2]
[368701773,1751309447238,-151.0,0.00013712,2]
[368701774,1751309447252,-294.63096,0.00013712,2]
[368701775,1751309448234,-294.63096,0.00013712,2]
[368701776,1751309448285,-324.839686,0.00013712,2]
[368701777,1751309448325,-324.839686,0.00013712,2]
[368701778,1751309448347,-199.105829,0.00013712,2]
[368701779,1751309448358,-199.105829,0.00013712,2]
[368701780,1751309448368,-151.0,0.00013733,2]
[368701781,1751309448378,-868.33833708,0.00013733,2]
[368701782,1751309448388,-151.0,0.0001375,2]
[368701783,1751309448399,-151.0,0.0001375,2]
[368701784,1751309448409,-151.0,0.0001375,2]
[368701785,1751309448420,-151.0,0.0001375,2]
[368701786,1751309448431,-415.771147,0.0001375,2]
[368701787,1751309448441,-415.771147,0.0001375,2]
[368701788,1751309448451,-151.0,0.0001375,2]
[368701789,1751309448461,-214.216467,0.0001375,2]
[368701790,1751309448471,-214.216467,0.0001375,2]
[368701791,1751309448481,-706.020562,0.0001375,2]
[368701792,1751309448490,-706.020562,0.0001375,2]
[368701793,1751309448501,-151.0,0.0001375,2]
[368701794,1751309448511,-284.319825,0.0001375,2]
[368701795,1751309448521,-1660.23279,0.0001376,2]
[368701796,1751309448531,-151.0,0.00013767,2]
[368701797,1751309448541,-206.943913,0.00013767,2]
[368701798,1751309448551,-206.943913,0.00013767,2]
[368701799,1751309448568,-151.0,0.00013767,2]
[368701800,1751309448579,-151.0,0.00013767,2]
[368701801,1751309448590,-151.0,0.00013767,2]
[368701802,1751309448601,-151.0,0.00013767,2]
[368701803,1751309448611,-200.0,0.00013771,2]
[368701804,1751309448621,-200.0,0.00013771,2]
[368701805,1751309448631,-203.16757203,0.00013774,2]
[368701806,1751309448642,-500.0,0.00013774,2]
[368701807,1751309448652,-500.0,0.00013774,2]
[368701808,1751309448663,-162.51778208,0.00013774,2]
[368701809,1751309448674,-500.0,0.00013774,2]
[368701810,1751309448685,-500.0,0.00013774,2]
[368701811,1751309448695,-513.19417776,0.00013774,2]
[368701812,1751309448705,-500.0,0.00013774,2]
[368701813,1751309448716,-548.0,0.00013774,2]
[368701814,1751309448727,-4729.0,0.00013774,2]
[368701815,1751309448737,-600.0,0.00013774,2]
[368701816,1751309448748,-500.0,0.00013774,2]
[368701817,1751309448758,-500.0,0.00013774,2]
[368701818,1751309448769,-670.0,0.00013774,2]
[368701819,1751309448779,-250.444701,0.00013774,2]
[368701820,1751309448790,-151.0,0.00013774,2]
[368701821,1751309448800,-151.0,0.00013774,2]
[368701822,1751309448810,-294.63096,0.00013774,2]
[368701823,1751309448820,-294.630951,0.00013774,2]
[368701824,1751309448830,-324.839686,0.00013774,2]
[368701825,1751309448841,-324.839686,0.00013774,2]
[368701826,1751309448851,-199.105829,0.00013774,2]
[368701827,1751309448861,-199.105826,0.00013774,2]
[368701828,1751309448871,-415.771147,0.00013774,2]
[368701829,1751309448882,-415.771138,0.00013774,2]
[368701830,1751309448893,-151.0,0.00013774,2]
[368701831,1751309448903,-214.216467,0.00013774,2]
[368701832,1751309448914,-214.21647,0.00013774,2]
[368701833,1751309448924,-706.020562,0.00013774,2]
[368701834,1751309448934,-706.020562,0.00013774,2]
[368701835,1751309448945,-207.311349,0.00013774,2]
[368701836,1751309448955,-151.0,0.00013774,2]
[368701837,1751309448965,-832.622211,0.00013774,2]
[368701838,1751309448975,-151.0,0.00013774,2]
[368701839,1751309448986,-832.622211,0.00013774,2]
[368701840,1751309449004,-151.0,0.00013774,2]
[368701841,1751309449015,-151.0,0.00013774,2]
[368701842,1751309449027,-201.97695,0.00013774,2]
[368701843,1751309449039,-151.0,0.00013774,2]
[368701844,1751309449050,-500.0,0.00013779,2]
[368701845,1751309449061,-191.82658388,0.00013779,2]
[368701846,1751309449071,-500.0,0.00013779,2]
[368701847,1751309449083,-302.56048805,0.00013779,2]
[368701848,1751309449094,-500.0,0.00013779,2]
[368701849,1751309449106,-500.0,0.00013779,2]
[368701850,1751309449118,-500.0,0.00013779,2]
[368701851,1751309449128,-200.90031319,0.00013779,2]
[368701852,1751309449139,-500.0,0.00013779,2]
[368701853,1751309449151,-500.0,0.00013779,2]
[368701854,1751309449162,-500.0,0.00013779,2]
[368701855,1751309449173,-500.0,0.00013779,2]
[368701856,1751309449184,-287.05523425,0.00013779,2]
[368701857,1751309449195,-500.0,0.00013779,2]
[368701858,1751309449207,-500.0,0.00013779,2]
[368701859,1751309449218,-151.0,0.00013787,2]
[368701860,1751309449230,-151.0,0.00013787,2]
[368701861,1751309449240,-151.0,0.00013787,2]
[368701862,1751309449251,-155.164571,0.00013787,2]
[368701863,1751309449262,-868.33833708,0.00013789,2]
[368701864,1751309449272,-182.214616,0.00013789,2]
[368701865,1751309449283,-182.214616,0.00013789,2]
[368701866,1751309449294,-211.941146,0.00013789,2]
[368701867,1751309449305,-180.824725,0.00013789,2]
[368701868,1751309449316,-180.824725,0.00013789,2]
[368701869,1751309449326,-151.0,0.00013789,2]
[368701870,1751309449337,-206.943913,0.00013789,2]
[368701871,1751309449347,-206.943913,0.00013789,2]
[368701872,1751309449358,-151.0,0.00013789,2]
[368701873,1751309449368,-151.0,0.0001379,2]
[368701874,1751309449379,-832.622211,0.0001379,2]
[368701875,1751309449390,-151.0,0.0001379,2]
[368701876,1751309449401,-832.622211,0.0001379,2]
[368701877,1751309449411,-151.0,0.0001379,2]
[368701878,1751309449422,-151.0,0.0001379,2]
[368701879,1751309449433,-151.0,0.000138,2]
[368701880,1751309449449,-151.0,0.000138,2]
[368701881,1751309449460,-151.0,0.000138,2]
[368701882,1751309449471,-151.0,0.000138,2]
[368701883,1751309449481,-174.202062,0.000138,2]
[368701884,1751309449492,-174.202062,0.000138,2]
[368701885,1751309449503,-151.0,0.000138,2]
[368701886,1751309449513,-151.0,0.000138,2]
[368701887,1751309449524,-151.0,0.000138,2]
[368701888,1751309449535,-151.0,0.000138,2]
[368701889,1751309449545,-151.0,0.000138,2]
[368701890,1751309449556,-151.0,0.000138,2]
[368701891,1751309449567,-324.839686,0.000138,2]
[368701892,1751309449577,-324.839687,0.000138,2]
[368701893,1751309449587,-151.0,0.000138,2]
[368701894,1751309449598,-151.0,0.000138,2]
[368701895,1751309449608,-151.0,0.000138,2]
[368701896,1751309449618,-151.0,0.000138,2]
[368701897,1751309449629,-3341.0,0.00013835,2]
[368701898,1751309449639,-948.0,0.00013835,2]
[368701899,1751309449650,-2009.0,0.00013835,2]
[368701900,1751309449661,-639.0,0.00013835,2]
[368701901,1751309449671,-804.0,0.00013835,2]
[368701902,1751309449682,-1163.0,0.00013835,2]
[368701903,1751309449692,-930.0,0.00013835,2]
[368701904,1751309449703,-592.0,0.00013835,2]
[368701905,1751309449713,-560.0,0.00013835,2]
[368701906,1751309449724,-1281.0,0.00013835,2]
[368701907,1751309449734,-1679.0,0.00013835,2]
[368701908,1751309449745,-209.61,0.00013835,2]
[368701909,1751309449756,-298.646,0.00013835,2]
[368701910,1751309449768,-1758.16215199,0.00013835,2]
[368701911,1751309450662,-608.07006925,0.00013835,2]
[368701912,1751309450792,-4049.89444998,0.00013835,2]
[368701913,1751309452011,-151.0,0.000135,2]
[368701914,1751309452024,-151.0,0.000135,2]
[368701915,1751309452037,-151.0,0.000135,2]
[368701916,1751309452046,-151.0,0.000135,2]
[368701917,1751309452055,-65.90824524,0.00013528,2]
[368701918,1751309452067,-85.09175476,0.00013528,2]
[368701919,1751309452077,-732.87332878,0.00013835,2]
[368701920,1751309452087,-1769.86491646,0.00013835,2]
[368701921,1751309452120,-440.13508354,0.00013835,2]
[368701922,1751309452130,-4105.0,0.00013835,2]
[368701923,1751309452141,-857.0,0.00013835,2]
[368701924,1751309452151,-886.0,0.00013835,2]
[368701925,1751309452160,-151.0,0.00013835,2]
[368701926,1751309452170,-206.943913,0.00013835,2]
[368701927,1751309452179,-206.943913,0.00013835,2]
[368701928,1751309452188,-151.0,0.00013835,2]
[368701929,1751309452198,-298.961608,0.00013835,2]
[368701930,1751309452207,-151.0,0.00013835,2]
[368701931,1751309452216,-151.0,0.00013835,2]
[368701932,1751309452225,-151.0,0.00013835,2]
[368701933,1751309452235,-178.675418,0.00013835,2]
[368701934,1751309452244,-832.622211,0.00013835,2]
[368701935,1751309452254,-151.0,0.00013835,2]
[368701936,1751309452263,-832.622204,0.00013835,2]
[368701937,1751309452273,-151.0,0.00013835,2]
[368701938,1751309452282,-286.148966,0.00013835,2]
[368701939,1751309452291,-151.0,0.00013835,2]
[368701940,1751309452301,-868.33833708,0.00013844,2]
[368701941,1751309452310,-835.8297818,0.00013867,2]
[368701942,1751309452320,-366.0,0.00013872,2]
[368701943,1751309452330,-361.21,0.00013877,2]
[368701944,1751309452340,-254.773322,0.00013877,2]
[368701945,1751309452350,-250.285353,0.00013878,2]
[368701946,1751309452359,-182.214616,0.00013883,2]
[368701947,1751309452368,-182.214616,0.00013883,2]
[368701948,1751309452378,-487.0,0.00013885,2]
[368701949,1751309452387,-247.84872192,0.00013885,2]
[368701950,1751309452396,-500.0,0.00013885,2]
[368701951,1751309452405,-500.0,0.00013885,2]
[368701952,1751309452415,-150.0,0.00013885,2]
[368701953,1751309452424,-500.0,0.00013885,2]
[368701954,1751309452433,-500.0,0.00013885,2]
[368701955,1751309452443,-500.0,0.00013885,2]
[368701956,1751309452451,-150.0,0.00013885,2]
[368701957,1751309452461,-202.04117953,0.00013885,2]
[368701958,1751309452470,-151.0,0.00013885,2]
[368701959,1751309452479,-151.0,0.00013885,2]
[368701960,1751309452489,-180.821266,0.00013885,2]
[368701961,1751309452499,-211.941146,0.00013885,2]
[368701962,1751309452509,-174.202062,0.00013885,2]
[368701963,1751309452518,-174.202062,0.00013885,2]
[368701964,1751309452527,-151.0,0.00013885,2]
[368701965,1751309452538,-266.933918,0.00013885,2]
[368701966,1751309452547,-180.824725,0.00013885,2]
[368701967,1751309452557,-180.824725,0.00013885,2]
[368701968,1751309452567,-151.0,0.00013885,2]
[368701969,1751309452576,-151.0,0.00013885,2]
[368701970,1751309452586,-151.0,0.00013885,2]
[368701971,1751309452595,-151.0,0.00013885,2]
[368701972,1751309452605,-151.0,0.00013885,2]
[368701973,1751309452614,-233.0,0.00013893,2]
[368701974,1751309452623,-355.0,0.00013893,2]
[368701975,1751309452632,-808.466,0.00013893,2]
[368701976,1751309452641,-333.0,0.00013894,2]
[368701977,1751309452651,-151.0,0.000139,2]
[368701978,1751309452660,-151.0,0.000139,2]
[368701979,1751309452669,-182.214616,0.000139,2]
[368701980,1751309452678,-182.214616,0.000139,2]
[368701981,1751309452688,-231.760743,0.000139,2]
[368701982,1751309452697,-174.202062,0.000139,2]
[368701983,1751309452706,-174.202062,0.000139,2]
[368701984,1751309452715,-267.4956573,0.000139,2]
[368701985,1751309452724,-151.0,0.000139,2]
[368701986,1751309452734,-206.943913,0.000139,2]
[368701987,1751309452743,-206.943913,0.000139,2]
[368701988,1751309452753,-206.943913,0.000139,2]
[368701989,1751309452762,-206.943913,0.000139,2]
[368701990,1751309452772,-151.0,0.000139,2]
[368701991,1751309452782,-151.0,0.000139,2]
[368701992,1751309452791,-151.0,0.000139,2]
[368701993,1751309452801,-311.22735855,0.000139,2]
[368701994,1751309452810,-868.33833708,0.000139,2]
[368701995,1751309452820,-311.22735853,0.000139,2]
[368701996,1751309452830,-311.22735853,0.000139,2]
[368701997,1751309452839,-311.22735853,0.000139,2]
[368701998,1751309452849,-311.22735853,0.000139,2]
[368701999,1751309452859,-311.22735853,0.000139,2]
[368702000,1751309452868,-311.22735853,0.000139,2]
[368702001,1751309452877,-311.22735853,0.000139,2]
[368702002,1751309452887,-311.22735853,0.000139,2]
[368702003,1751309452895,-229.031458,0.000139,2]
[368702004,1751309452905,-311.22735853,0.000139,2]
[368702005,1751309452914,-311.22735853,0.000139,2]
[368702006,1751309452923,-153.89841368,0.000139,2]
[368702007,1751309452932,-311.22735853,0.000139,2]
[368702008,1751309452941,-311.22735853,0.000139,2]
[368702009,1751309452950,-311.22735853,0.000139,2]
[368702010,1751309452960,-311.22735853,0.000139,2]
[368702011,1751309452969,-311.22735853,0.000139,2]
[368702012,1751309452979,-311.22735853,0.000139,2]
[368702013,1751309452988,-311.22735853,0.000139,2]
[368702014,1751309452997,-311.22735853,0.000139,2]
[368702015,1751309453007,-311.22735853,0.000139,2]
[368702016,1751309453017,-154.14629039,0.0001392,2]
[368702017,1751309453027,-151.0,0.00013945,2]
[368702018,1751309453039,-151.0,0.00013946,2]
[368702019,1751309453049,-151.0,0.00013946,2]
[368702020,1751309453058,-150.36,0.00013946,2]
[368702021,1751309453068,-174.481,0.00013946,2]
[368702022,1751309453078,-150.435,0.00013946,2]
[368702023,1751309453087,-154.772,0.00013946,2]
[368702024,1751309453096,-150.0,0.00013946,2]
[368702025,1751309453107,-219.584,0.00013946,2]
[368702026,1751309453117,-291.73,0.00013946,2]
[368702027,1751309453126,-250.691,0.00013946,2]
[368702028,1751309453136,-253.434,0.00013946,2]
[368702029,1751309453145,-184.67,0.00013946,2]
[368702030,1751309453155,-201.416,0.00013946,2]
[368702031,1751309453164,-245.219,0.00013946,2]
[368702032,1751309453174,-205.18,0.00013946,2]
[368702033,1751309453184,-151.0,0.00013964,2]
[368702034,1751309453193,-151.0,0.00013964,2]
[368702035,1751309453205,-211.941146,0.00013972,2]
[368702036,1751309453215,-180.824725,0.00013972,2]
[368702037,1751309453224,-180.824725,0.00013972,2]
[368702038,1751309453235,-151.0,0.00013972,2]
[368702039,1751309453247,-151.0,0.00013972,2]
[368702040,1751309453257,-151.0,0.00013972,2]
[368702041,1751309453267,-155.988694,0.00013972,2]
[368702042,1751309453276,-502.01101058,0.00013973,2]
[368702043,1751309453286,-500.0,0.00013973,2]
[368702044,1751309453295,-643.23409207,0.00013973,2]
[368702045,1751309453305,-500.0,0.00013973,2]
[368702046,1751309453315,-500.0,0.00013973,2]
[368702047,1751309453326,-500.0,0.00013973,2]
[368702048,1751309453337,-500.0,0.00013973,2]
[368702049,1751309453348,-500.0,0.00013973,2]
[368702050,1751309453358,-500.0,0.00013973,2]
[368702051,1751309453367,-500.0,0.00013973,2]
[368702052,1751309453376,-500.0,0.00013973,2]
[368702053,1751309453386,-390.17606,0.00013973,2]
[368702054,1751309453396,-500.0,0.00013973,2]
[368702055,1751309453406,-777.0,0.00013973,2]
[368702056,1751309453416,-430.0,0.00013973,2]
[368702057,1751309453425,-151.0,0.0001399,2]
[368702058,1751309453435,-151.0,0.0001399,2]
[368702059,1751309453445,-182.214616,0.0001399,2]
[368702060,1751309453456,-182.214616,0.0001399,2]
[368702061,1751309453466,-182.214616,0.0001399,2]
[368702062,1751309453476,-182.21462422,0.0001399,2]
[368702063,1751309453486,-151.0,0.0001399,2]
[368702064,1751309453495,-151.0,0.0001399,2]
[368702065,1751309453506,-211.941146,0.0001399,2]
[368702066,1751309453516,-211.941146,0.0001399,2]
[368702067,1751309453527,-211.941146,0.0001399,2]
[368702068,1751309453537,-211.941146,0.0001399,2]
[368702069,1751309453547,-211.941146,0.0001399,2]
[368702070,1751309453557,-211.941139,0.0001399,2]
[368702071,1751309453567,-174.202062,0.0001399,2]
[368702072,1751309453576,-174.202062,0.0001399,2]
[368702073,1751309453585,-174.202062,0.0001399,2]
[368702074,1751309453594,-174.202062,0.0001399,2]
[368702075,1751309453604,-174.202062,0.0001399,2]
[368702076,1751309453614,-174.202064,0.0001399,2]
[368702077,1751309453825,-151.0,0.0001399,2]
[368702078,1751309453838,-151.0,0.0001399,2]
[368702079,1751309453848,-151.0,0.0001399,2]
[368702080,1751309453858,-180.824725,0.0001399,2]
[368702081,1751309453868,-180.824725,0.0001399,2]
[368702082,1751309453877,-180.824725,0.0001399,2]
[368702083,1751309453887,-180.824725,0.0001399,2]
[368702084,1751309453897,-180.824725,0.0001399,2]
[368702085,1751309453906,-180.824722,0.0001399,2]
[368702086,1751309453916,-151.0,0.0001399,2]
[368702087,1751309453925,-151.0,0.0001399,2]
[368702088,1751309453935,-151.0,0.0001399,2]
[368702089,1751309453945,-251.544228,0.0001399,2]
[368702090,1751309453955,-227.508068,0.0001399,2]
[368702091,1751309453965,-151.0,0.0001399,2]
[368702092,1751309453974,-151.0,0.0001399,2]
[368702093,1751309453984,-209.21711343,0.0001399,2]
[368702094,1751309453994,-209.21711343,0.0001399,2]
[368702095,1751309454004,-209.21711343,0.0001399,2]
[368702096,1751309454015,-666.0,0.00013999,2]
[368702097,1751309454025,-151.0,0.00013999,2]
[368702098,1751309454038,-151.0,0.00013999,2]
[368702099,1751309454047,-187802.13549422,0.00014,2]
[368702100,1751309454057,-28004.79512876,0.00014,2]
[368702101,1751309454112,-230652.25243121,0.00014,2]
[368702102,1751309454232,-151.0,0.00013578,2]
[368702103,1751309454242,-1976.5000002,0.00014,2]
[368702104,1751309454255,-1502.7047,0.00014,2]
[368702105,1751309456655,-151.0,0.000136,2]
[368702106,1751309456666,-151.0,0.00013699,2]
[368702107,1751309456676,-151.0,0.00013774,2]
[368702108,1751309456686,-151.0,0.0001379,2]
[368702109,1751309456695,-151.0,0.00013835,2]
[368702110,1751309456705,-19510.42773493,0.00014,2]
[368702111,1751309456717,-2475.5,0.00014,2]
[368702112,1751309456728,-606.7,0.00014,2]
[368702113,1751309456740,-2158.6,0.00014,2]
[368702114,1751309456751,-1060.84288534,0.00014,2]
[368702115,1751309456885,-151.0,0.000135,2]
[368702116,1751309456894,-554.52841105,0.00014,2]
[368702117,1751309456911,-3110.92028415,0.00014,2]
[368702118,1751309456946,-264.4168396,0.00014,2]
[368702119,1751309456958,-55023.74676935,0.00014,2]
[368702120,1751309465577,517.0,0.00012518,2]
[368702121,1751309484297,161.87,0.00012951,2]
[368702122,1751309511868,200.0,0.00012819,7]
[368702123,1751309549343,202.0,0.00012518,2]
[368702124,1751309579018,403.0,0.00012518,2]
[368702125,1751309596075,1000.0,0.0001277,2]
[368702126,1751309687314,444.74,0.00012737,2]
[368702127,1751309687510,826.11,0.00012737,2]
[368702128,1751309729600,2710.29,0.00012842,2]
[368702129,1751309786297,3602.56,0.00012737,2]
[368702130,1751309829092,1640.65,0.00012748,2]
[368702131,1751309855142,150.0,0.0001297,2]
[368702132,1751309882355,168.57,0.00010213,2]
[368702137,1751310284868,223.42,0.00012786,2]
[368702138,1751310356792,216.72,0.00012786,2]
[368702139,1751310368293,150.0,0.00012785,2]
[368702185,1751310551431,200.0,0.00012811,7]
[368702202,1751310614591,200.0,0.00012798,2]
[368702237,1751310632883,-170.45,0.00013119,2]
[368702238,1751310632894,-250.0,0.00013256,2]
[368702239,1751310632904,-1200.0,0.00013393,2]
[368702240,1751310632914,-844.55,0.00013394,2]
[368702241,1751310632946,-351.84342778,0.00013394,2]
[368702242,1751310632957,-1450.3835063,0.00013394,2]
[368702243,1751310632978,-4265.86506592,0.00013394,2]
[368702244,1751310632987,-500.0,0.00013394,2]
[368702245,1751310632997,-500.0,0.00013394,2]
[368702246,1751310633008,-500.0,0.00013394,2]
[368702247,1751310633018,-500.0,0.00013394,2]
[368702248,1751310633028,-500.0,0.00013394,2]
[368702249,1751310633038,-500.0,0.00013394,2]
[368702250,1751310633049,-500.0,0.00013394,2]
[368702251,1751310633059,-500.0,0.00013394,2]
[368702252,1751310633069,-500.0,0.00013394,2]
[368702253,1751310633080,-300.0,0.00013394,2]
[368702254,1751310633090,-500.0,0.00013394,2]
[368702255,1751310633100,-500.0,0.00013394,2]
[368702256,1751310633110,-500.0,0.00013394,2]
[368702257,1751310633120,-500.0,0.00013394,2]
[368702258,1751310633130,-500.0,0.00013394,2]
[368702259,1751310633140,-500.0,0.00013394,2]
[368702260,1751310633149,-500.0,0.00013394,2]
[368702261,1751310633159,-500.0,0.00013394,2]
[368702262,1751310633169,-500.0,0.00013394,2]
[368702263,1751310633178,-500.0,0.00013394,2]
[368702264,1751310633187,-500.0,0.00013394,2]
[368702265,1751310633197,-550.04597829,0.00013394,2]
[368702266,1751310633207,-207.4,0.00013394,2]
[368702267,1751310633217,-500.0,0.00013394,2]
[368702268,1751310633227,-500.0,0.00013394,2]
[368702269,1751310633236,-481.89262877,0.00013394,2]
[368702270,1751310633246,-300.0,0.00013394,2]